Cogmind - Beta 13 @@@ ROGUE MODE // 2024.04.20 @ 10:36:56 Player: Olafz Result: Destroyed by AC-OZW(R) with Subdweller Laser Performance ------------- Evolutions (0) 0 Regions Visited (3) 600 Robots Destroyed (27) 135 Value Destroyed (734) 734 Prototype IDs (0) 0 Alien Tech Used (0) 0 Bonus (0) 0 TOTAL SCORE: 1469 Bonus ------- None Cogmind --------- Core Integrity 0/250 Matter 300/300 Energy 166/170 System Corruption 0% Temperature Cool (8) Movement Treading (165) Location -10/Subcaves Parts ------- > --- POWER (1) -------- Makeshift Power Source > --- PROPULSION (2) --- Light Treads Armored Treads > --- UTILITY (2) ------ Medium Storage Unit > --- WEAPON (2) ------- Heavy Flail > --- INVENTORY (10) --- Ion Engine Ion Engine Ion Engine Light Nuclear Core Improved Treads Improved Treads Heat Sink Improved Heat Sink Rocket Launcher Rocket Launcher Peak State ------------ > --- POWER ------------ Light Nuclear Core > --- PROPULSION ------- Improved Treads Armored Treads > --- UTILITY ---------- Medium Storage Unit Sensor Array > --- WEAPON ----------- Shock Rifle Shock Rifle > --- INVENTORY -------- Ion Engine Ion Engine Ion Engine Light Treads Improved Treads Improved Treads Improved Heat Sink Rocket Launcher Rocket Launcher Heavy Flail [Rating: 17] Favorites ----------- Power Light Nuclear Core Engine Light Ion Engine Power Core Light Nuclear Core Propulsion Improved Treads Treads Improved Treads Leg Aluminum Leg Utility Medium Storage Unit Device Sensor Array Storage Medium Storage Unit Weapon Shock Rifle Energy Gun Shock Rifle Ballistic Gun Light Assault Rifle Impact Weapon Heavy Flail Build | -11 -10 -10 -10 ------- Run | Yrd Mat Min Sub Slots Evolved . | . . . . Power . | . . . . Propulsion . | . . . . Utility . | . . . . Weapon . | . . . . Parts Attached 15 | . 8 5 2 Power 3 | . 1 1 1 Engine 2 | . 1 . 1 Core 1 | . . 1 . Reactor . | . . . . Propulsion 4 | . 2 2 . Treads 4 | . 2 2 . Leg . | . . . . Wheel . | . . . . Hover . | . . . . Flight . | . . . . Utility 2 | . 2 . . Device 1 | . 1 . . Storage 1 | . 1 . . Processor . | . . . . Hackware . | . . . . Protection . | . . . . Artifact . | . . . . Weapon 6 | . 3 2 1 Energy Gun 3 | . 1 2 . Energy Cannon . | . . . . Ballistic Gun 2 | . 2 . . Ballistic Cannon . | . . . . Launcher . | . . . . Special Weapon . | . . . . Impact Weapon 1 | . . . 1 Slashing Weapon . | . . . . Piercing Weapon . | . . . . Special Melee Weapon . | . . . . Unidentified Prototypes . | . . . . Parts Lost 9 | . 5 1 3 Power 1 | . 1 . . Propulsion 2 | . 1 1 . Utility 1 | . . . 1 Weapon 5 | . 3 . 2 Highest Loss Streak 3 | . 3 1 3 To Critical Strikes . | . . . . Average Slot Usage (%) 94 | . 93 98 75 Engine 7 | . 13 1 7 Core 6 | . . 12 6 Treads 26 | . 26 27 28 Device 11 | . 11 14 2 Storage 14 | . 14 14 14 Energy Gun 23 | . 21 27 7 Ballistic Gun 2 | . 3 . . Naked Turns . | . . . . Heaviest Build 22 | 12 22 22 22 Greatest Support 46 | 20 46 43 40 Greatest Overweight (x) 1 | . . 1 . Average Overweight (x) . | . . . . Largest Inventory Capacity 10 | . 10 10 10 Average Capacity 9 | . 9 10 10 Most Carried 10 | . 10 10 10 Average Carried 9 | . 9 9 9 Final Capacity 10 | 8 10 10 10 Final Carried 10 | 6 10 10 10 Class Distribution -------------------- 96% | Mutant 3% | Scavenger-Mutant Dominant Class ---------------- Mutant | -10/Materials Mutant | -10/Mines Mutant | -10/Subcaves Resources | -11 -10 -10 -10 ----------- Run | Yrd Mat Min Sub Matter Collected 383 | 200 103 60 20 Remotely . | . . . . Salvage Created 1069 | . 650 197 222 Parts 59 | . 40 12 7 Haulers Intercepted 1 | . 1 . . Recyclers Shooed . | . . . . Parts Field Recycled . | . . . . Retrieved Matter . | . . . . Parts Self-Destructed 1 | . . . 1 Prevented 1 | . . . 1 Kills | -11 -10 -10 -10 ------- Run | Yrd Mat Min Sub Combat Hostiles Destroyed 22 | . 12 6 4 Melee 1 | . . . 1 Guns 17 | . 9 6 2 AOE 4 | . 3 . 1 Classes Destroyed 7 | . 5 . 2 Hauler 1 | . 1 . . Recycler 1 | . 1 . . Watcher 3 | . 3 . . Swarmer 6 | . 3 3 . Grunt 14 | . 9 3 2 Artisan 1 | . . . 1 Subdweller 2 | . . . 2 Best Kill Streak 5 | . 5 3 4 Combat Bots Only 5 | . 5 3 4 Max Kills in Single Turn 1 | . 1 1 1 Gunslinging . | . . . . Exploded 1 | . 1 . 1 Melee 1 | . . . 1 Uniques/NPCs Destroyed . | . . . . Combat | -11 -10 -10 -10 -------- Run | Yrd Mat Min Sub Hostile Shots Fired 148 | . 95 19 34 Missed 42 | . 24 7 11 Damage Taken 1334 | . 757 112 465 Core 260 | . 112 45 103 Absorbed by Shields . | . . . . Core Remaining (%) 100 | 100 . . . Volleys Fired 74 | . 48 10 16 Largest 2 | . 2 2 2 Hottest 100 | . 80 100 100 Shots Fired 115 | . 75 20 20 Gun 115 | . 75 20 20 Cannon . | . . . . Launcher . | . . . . Special . | . . . . Kinetic 19 | . 19 . . Thermal 26 | . 26 . . Explosive . | . . . . Electromagnetic 70 | . 30 20 20 Robot Hit Streak 8 | . 6 4 8 Robot Miss Streak 4 | . 4 4 2 Penetration Max . | . . . . Secondary Targets 3 | . 3 . . Max Gunslinging Chain 1 | . 1 . . Shots Hit Robots 75 | . 48 10 17 Core Hits 38 | . 25 7 6 Critical Kills 1 | . . . 1 Critical Parts Destroyed 1 | . . . 1 Critical Strikes 4 | . 2 . 2 Burn 2 | . 2 . . Smash 2 | . . . 2 Melee Attacks 2 | . . . 2 Impact 2 | . . . 2 Slashing . | . . . . Piercing . | . . . . Sneak Attacks 1 | . . . 1 Combat Hostiles . | . . . . Follow-up Attacks . | . . . . Damage Inflicted 1473 | . 823 169 481 Guns 1036 | . 640 169 227 Cannons . | . . . . Explosions 278 | . 183 . 95 Melee 159 | . . . 159 Ramming . | . . . . Kinetic 123 | . 123 . . Thermal 515 | . 420 . 95 Explosive . | . . . . Electromagnetic 676 | . 280 169 227 Impact 159 | . . . 159 Slashing . | . . . . Piercing . | . . . . Highest Corruption . | . . . . Average Corruption . | . . . . Corruption Purged . | . . . . Corruption Blocked . | . . . . Overload Shots . | . . . . Overflow Damage 118 | . . . 118 Projectiles . | . . . . Explosions . | . . . . Melee 118 | . . . 118 Knockbacks . | . . . . Impact . | . . . . Kinetic . | . . . . Secondary . | . . . . Self-Inflicted Damage 28 | . 28 . . Shots 1 | . 1 . . Rammed . | . . . . Targets Rammed . | . . . . Kicked . | . . . . Crushed . | . . . . Highest Temperature 327 | . 327 201 18 Average Temperature 94 | . 107 73 9 Received Heat Transfer 498 | . 327 27 144 Effects 4 | . 4 . . Energy Bleed 1 | . 1 . . Interference 2 | . 2 . . Matter Decay 1 | . 1 . . Siege Activations . | . . . . Robots Corrupted . | . . . . Combat Hostiles . | . . . . Parts Fried 6 | . 3 . 3 Impact Corruptions 2 | . . . 2 Robots Melted . | . . . . Combat Hostiles . | . . . . Parts Melted 1 | . . . 1 Heat Transferred 1101 | . 1001 . 100 Parts Sabotaged . | . . . . Parts Stolen . | . . . . Parts Stripped . | . . . . Power Chain Reactions 4 | . 3 . 1 Alert | -11 -10 -10 -10 ------- Run | Yrd Mat Min Sub Peak Influence 224 | . 224 108 . Initial 28 | . . 28 . Average 61 | . 69 53 . Maximum Alert Level 1 | . 1 . . Low Security (%) 96 | . 93 100 . Level 1 3 | . 6 . . Level 2 . | . . . . Level 3 . | . . . . Level 4 . | . . . . Level 5 . | . . . . High Security . | . . . . Max Security . | . . . . Squads Dispatched 3 | . 2 1 . Investigation 2 | . 1 1 . Extermination . | . . . . Reinforcement 1 | . 1 . . Assault . | . . . . Garrison . | . . . . Intercept . | . . . . Searches Triggered . | . . . . Construction Impeded . | . . . . Haulers Reinforced . | . . . . Active Scanning Responses . | . . . . Cargo Convoy Interrupts . | . . . . Stealth | -11 -10 -10 -10 --------- Run | Yrd Mat Min Sub Distress Signals . | . . . . Communications Jammed . | . . . . Distress Signals . | . . . . Times Spotted 28 | . 17 6 5 Peak Tracking Total 4 | . 4 3 4 Tactical Retreats . | . . . . Traps | -11 -10 -10 -10 ------- Run | Yrd Mat Min Sub Traps Triggered . | . . . . Indirectly . | . . . . Trap Hack Attempts . | . . . . Triggered . | . . . . Disarmed . | . . . . Reprogrammed . | . . . . Reused . | . . . . Traps Extracted . | . . . . Installed . | . . . . Triggered . | . . . . Machines | -11 -10 -10 -10 ---------- Run | Yrd Mat Min Sub Machines Disabled 1 | . 1 . . Max in Single Turn 1 | . 1 . . Machines Repaired . | . . . . Machines Dismantled . | . . . . Machines Sabotaged . | . . . . Overloaded Fab Kills . | . . . . Hacking | -11 -10 -10 -10 --------- Run | Yrd Mat Min Sub Machines Accessed 3 | . 2 1 . Terminals 2 | . 2 . . Fabricators . | . . . . Repair Stations . | . . . . Recycling Units . | . . . . Scanalyzers . | . . . . Garrison Access . | . . . . Total Hacks 6 | . 5 1 . Successful 2 | . 1 1 . Failed 4 | . 4 . . Catastrophic 3 | . 3 . . Database Lockouts . | . . . . Manual 5 | . 5 . . Terminals 5 | . 5 . . Fabricators . | . . . . Repair Stations . | . . . . Recycling Units . | . . . . Scanalyzers . | . . . . Garrison Access . | . . . . Terminal Hacks 2 | . 1 1 . Open Door 1 | . . 1 . Branch Access Points 1 | . 1 . . Fabricator Hacks . | . . . . Repair Station Hacks . | . . . . Recycling Unit Hacks . | . . . . Scanalyzer . | . . . . Garrison Access Hacks . | . . . . Unauthorized Hacks . | . . . . Terminals . | . . . . Fabricators . | . . . . Repair Stations . | . . . . Recycling Units . | . . . . Scanalyzers . | . . . . Garrison Access . | . . . . Data Cores Recovered . | . . . . Used . | . . . . Hacking Detections 2 | . 2 . . Full Trace Events 1 | . 1 . . Feedback Events . | . . . . Feedback Blocked . | . . . . Robot Schematics Acquired . | . . . . Robots Built . | . . . . Authchips . | . . . . Time . | . . . . Total Robot Build Rating . | . . . . Part Schematics Acquired . | . . . . Parts Built . | . . . . Authchips . | . . . . Time . | . . . . Total Part Build Rating . | . . . . Parts Repaired . | . . . . Time . | . . . . Parts Recycled . | . . . . Recycled Matter . | . . . . Retrieved Matter . | . . . . Retrieved Components . | . . . . Parts Scanalyzed . | . . . . Part Schematics Acquired . | . . . . Parts Damaged . | . . . . Bothacking | -11 -10 -10 -10 ------------ Run | Yrd Mat Min Sub Used RIF Installer . | . . . . Robots Hacked . | . . . . Non-combat . | . . . . Combat . | . . . . Robot Hacks Applied . | . . . . Relay Couplers Released . | . . . . Fabnet Peak Effective % . | . . . . Robots Rewired . | . . . . Allies Hacked . | . . . . Hacks Repelled . | . . . . Allies | -11 -10 -10 -10 -------- Run | Yrd Mat Min Sub Total Allies 2 | . . 2 . Largest Group 2 | . . 2 2 Highest-Rated Group 45 | . . 45 45 Highest-Rated Ally 31 | . . 31 31 Total Orders . | . . . . Ally Attacks 5 | . . . 5 Total Damage 63 | . . . 63 Kills . | . . . . Allies Corrupted . | . . . . Allies Melted . | . . . . Intel | -11 -10 -10 -10 ------- Run | Yrd Mat Min Sub Robot Analysis Total . | . . . . Derelict Logs Recovered 2 | . . 2 . Drone Launches . | . . . . Drone Recoveries . | . . . . Exploration | -11 -10 -10 -10 ------------- Run | Yrd Mat Min Sub Turns Passed 1740 | . 812 805 123 Spaces Moved 917 | 1 416 451 49 Core . | . . . . Treads 905 | . 405 451 49 Legs 12 | 1 11 . . Wheels . | . . . . Hover . | . . . . Flight . | . . . . Fastest Speed 120 | 120 120 160 165 Average Speed 162 | 120 158 166 165 Slowest Speed 250 | 120 160 250 165 Overloaded Moves . | . . . . Propulsion Burnouts . | . . . . Robots Hopped . | . . . . Cave-ins Triggered . | . . . . Exploration Rate (%) 40 | 1 62 95 5 Regions Visited 3 Branch Regions 2 Pre-discovered Areas 2 | . . 2 . Known Exits Taken 1 | . 1 . . Unknown Exits Taken 2 | 1 . 1 . Scrap Searched 1 | . . 1 . Spaces Dug . | . . . . Terrain Destroyed 11 | . 9 . 2 Melee . | . . . . Projectile . | . . . . AOE 11 | . 9 . 2 Terrain Rammed . | . . . . Walls Destroyed . | . . . . Machines Disabled . | . . . . Actions | -11 -10 -10 -10 --------- Run | Yrd Mat Min Sub Total 1056 | . 499 488 69 Wait 21 | . 8 13 . Move 914 | . 415 450 49 Hop . | . . . . Pick Up 15 | . 11 4 . Fast Attach 10 | . 6 4 . Attach 4 | . 2 1 1 Detach 1 | . 1 . . Swap 1 | . . . 1 Drop 14 | . 8 6 . Fire 74 | . 48 10 16 Melee 2 | . . . 2 Ram . | . . . . Kick . | . . . . Crush . | . . . . Escape Stasis . | . . . . Rewire . | . . . . Trap . | . . . . Miscellaneous . | . . . . Route ------- -11/Scrapyard -10/Materials (discovered 3 exits: [*Mat x2] / *Min) -10/Mines (discovered 3 exits: [*Mat x2] / [*Sub]) -10/Subcaves History --------- Turn | Location | Event 1 | -11/Scrapyard | Discovered new exit (range 0) 1 | -11/Scrapyard | Entered Materials 164 | -10/Materials | Discovered new exit (range 13) 230 | -10/Materials | Discovered new exit (range 14) 286 | -10/Materials | Identified exit to Mines 310 | -10/Materials | Build established: Mutant 799 | -10/Materials | Lost 3 parts (1p1n1w) 813 | -10/Materials | Entered Mines 819 | -10/Mines | Met a Derelict shopkeep closing up shop 971 | -10/Mines | Core integrity fell below 50% 1144 | -10/Mines | Learned location of Storage (-7) 1162 | -10/Mines | Discovered new exit (range 8) 1188 | -10/Mines | Discovered new exit (range 5) 1428 | -10/Mines | Learned location of Zion (-7) 1608 | -10/Mines | Discovered new exit (range 6) 1618 | -10/Mines | Entered Subcaves 1618 | -10/Subcaves | Accompanied by 2 allies 1625 | -10/Subcaves | Ambushed by Subdwellers from Twisted Machinery 1658 | -10/Subcaves | Core integrity fell below 20% 1692 | -10/Subcaves | Lost 3 parts (1u2w) 1693 | -10/Subcaves | A swath of the cavern ceiling suddenly collapsed 1736 | -10/Subcaves | Ambushed by angry Subdweller bent on revenge 1741 | -10/Subcaves | Destroyed by AC-OZW(R) with Subdweller Laser Last Messages --------------- WO-BNH(R) destroyed. Shock Rifle destroyed. Acquired 10 matter. 8Z-3R5(R) suffers critical hit (Smash). Sub. Optics melted. 8Z-3R5(R) destroyed. Subatomizers dissect the Mak. Power Source. Subatomizers dissect the Carbon-fiber Leg. Acquired 10 matter. A swath of the cavern ceiling suddenly collapses. Subatomizers dissect the Carbon-fiber Leg. Sneak attack on U0-OZ6(u). U0-OZ6(u) suffers critical hit (Smash). Destroyed Wheel. Destroyed Multitool. U0-OZ6(u) system corrupted by crushing effect. U0-OZ6(u) cries out in pain. U0-OZ6(u) destroyed. AC-OZW(R) angrily emerges from the Twisted Machinery. AC-OZW(R): "ECOKILL!" Map ----- +----------------------------------------------------+ | ?????????????????# %*& #???????????????? | | ?????????????????# !%&##???????????????? | | ?????????????????##= &&##????????????????? | | ??????????????????#%##%##?????????????????? | | ?????????????????##!## ###????????????????? | | ?????????????????# #????????????????? | | ?????????????????# ##???????????????? | | ?????????????????#" [ ##??????????????? | | ???????????#######"%% #??????????????? | | ??????????### # # ##??????????????? | | ??????????#" "" ##???????????????? | | ??????????##"""# # ##????????????????? | | ???????????#"#### ## #?????????????????? | | ???????????#"#??##### ####???????????????? | | ???????????"##?? ### ## ##??????????????? | | ??????????#" #?## ## ##?????????????? | | ??????????#" #?? ## #?????????????? | | ??????????## ??# #?## # #?????????????? | | ?????????? ?? ??#### #?????????????? | | ?????????# ?? ##?????## #?????????????? | | ?????????# ??#????##### #?????????????? | | ????????? ???????# " #?????????????? | | ????????? ??????## "" #?????????????? | | ????????? ??????# "" #?????????????? | | ?????????? " ??????##" R #?????????????? | | ??????????# ?"???????## @ ##?????????????? | | ??????????????????????###" #??????????????? | | ????????????????????????##%#??????????????? | | ?????????????????????????# #??????????????? | | ????????????????????????#" #??????????????? | | ??????????????????????? "" #??????????????? | | ?????????????????????? "" #??????????????? | | ?????????????????????" ""##??????????????? | | ????????????????????"" """????????????????? | | ????????????????????##""" ????????????????? | | ????????????????????????" ????????????????? | | ????????????????????????" ????????????????? | | ????????????????????????? ????????????????? | | ????????????????????????""????????????????? | | ??????????????????????????????????????????? | | ??????????????????????????????????????????? | | ??????????????????????????????????????????? | | ??????????????????????????????????????????? | | ??????????????????????????????????????????? | | ??????????????????????????????????????????? | | ??????????????????????????????????????????? | | ??????????????????????????????????????????? | | ??????????????????????????????????????????? | | ??????????????????????????????????????????? | | ??????????????????????????????????????????? | +----------------------------------------------------+ Best States ------------- Heat Dissipation 25 Energy Generation 15 Energy Capacity 250 Matter Stores 300 Matter Capacity 300 Sight Range 16 Robot Scan Range 14 Terrain Scan Density 10 Evasion (%) 50 Recoil Reduction 2 Item Schematics ----------------- None Robot Schematics ------------------ None Fabricated ------------ Nothing Alien Tech Used ----------------- None Achievements -------------- None Challenges ------------ None Game ------ Seed GuidedQuantumClaws Manual? 0 Play Time 00:11:22 Cumulative 70.6 hours Start 2024.04.20 @ 10:27:06 End 2024.04.20 @ 10:36:56 Sessions 1 Manual Loads 0 Difficulty Rogue Special Mode None Game No. 149 Rogue 147 Adventurer 2 Explorer 0 Win Type - Total 1 Types 1/0/0/0/0/0/0/0/0 Lore% 46 Gallery% 46 Achievement% 36 Wizard Run 0 Options --------- Layout 0 ASCII 0 Keyboard 1 Movement Numpad Keybinds 1 Fullscreen 2 Font 18/SmallcapsGlow Map View 76x50 Zoom Use 0% Tactical HUD 1 Map Filters NONE Filters NONE Steam 1 RUN: 21f4c34b-9ddd-4315-9f9b-5e8b99454ad8